bitfinex/quotes_ETHUSD_20230103
["timestamp","ask_amount","ask_price","bid_price","bid_amount"]
[1672773054320,3.95977495,1207.7,1207.6,11.1079327]
[1672773054545,3.89577495,1207.7,1207.6,11.1079327]
[1672773056051,3.89577495,1207.7,1207.6,7.21486114]
[1672773056577,5.12943606,1207.7,1207.6,7.21486114]
[1672773056716,5.14343606,1207.7,1207.6,7.21486114]
[1672773056926,5.14343606,1207.7,1207.6,11.1079327]
[1672773056927,3.90977495,1207.7,1207.6,11.1079327]
[1672773057138,3.85047851,1207.7,1207.6,7.21486114]
[1672773058036,5.08413962,1207.7,1207.6,7.21486114]
[1672773058262,5.14813962,1207.7,1207.6,7.21486114]
[1672773058400,5.14813962,1207.7,1207.6,11.1079327]
[1672773058749,3.91447851,1207.7,1207.6,11.1079327]
[1672773058971,3.85047851,1207.7,1207.6,11.1079327]
[1672773059593,3.85047851,1207.7,1207.6,21.0449927]
[1672773060462,3.85047851,1207.7,1207.6,17.15192114]
[1672773061076,3.85047851,1207.7,1207.6,17.64709286]
[1672773062006,3.85047851,1207.7,1207.6,27.58415286]
[1672773062180,3.85047851,1207.7,1207.6,17.64709286]
[1672773062658,3.85047851,1207.7,1207.6,8.11865993]
[1672773062974,5.08413962,1207.7,1207.6,8.11865993]
[1672773063209,15.08437962,1207.7,1207.6,8.11865993]
[1672773063546,25.02061962,1207.7,1207.6,8.11865993]
[1672773064130,15.08437962,1207.7,1207.6,8.11865993]
[1672773064723,15.08437962,1207.7,1207.6,7.62348821]
[1672773064931,16.94450458,1207.7,1207.6,7.62348821]
[1672773065146,15.08437962,1207.7,1207.6,7.62348821]
[1672773065356,15.08437962,1207.7,1207.6,7.21486114]
[1672773065694,5.14813962,1207.7,1207.6,7.21486114]
[1672773066072,15.08437962,1207.7,1207.6,3.066]
[1672773066286,40.36560434,1207.7,1207.5,3.066]
[1672773066500,40.36560434,1207.7,1207.5,7.14886114]
[1672773066501,5.12673267,1207.6,1207.5,7.14886114]
[1672773066734,13.89413156,1207.6,1207.5,7.21486114]
[1672773067092,3.95707156,1207.6,1207.5,7.21486114]
[1672773067261,3.89777251,1207.6,1207.5,17.15274114]
[1672773067786,3.89777251,1207.6,1207.5,27.58579286]
[1672773069345,3.89777251,1207.6,1207.5,34.04808015]
[1672773070079,3.89777251,1207.6,1207.5,24.11020015]
[1672773071257,3.89777251,1207.6,1207.5,34.04808015]
[1672773072509,3.89777251,1207.6,1207.5,36.3800081]
[1672773072716,3.89777251,1207.6,1207.5,46.3178881]
[1672773073131,3.89777251,1207.6,1207.5,36.3800081]
[1672773074152,3.89777251,1207.6,1207.5,56.2557681]
[1672773074472,3.89777251,1207.6,1207.5,46.3178881]
[1672773074786,0.00470095,1207.6,1207.5,46.3178881]
[1672773074950,0.00470095,1207.6,1207.5,56.2557681]
[1672773075146,5.19519534,1207.7,1207.5,56.2557681]
[1672773075367,5.19519534,1207.7,1207.6,4.14886114]
[1672773075670,5.19519534,1207.7,1207.6,39.78230321]
[1672773075938,5.19519534,1207.7,1207.6,39.84794044]
[1672773076886,5.19519534,1207.7,1207.6,37.52121286]
[1672773077064,7.0553203,1207.7,1207.6,37.5188526]
[1672773077275,5.82165919,1207.7,1207.6,37.5188526]
[1672773077899,6.42984551,1207.7,1207.6,37.5188526]
[1672773078814,8.91001212,1207.7,1207.6,37.5188526]
[1672773079242,10.15009543,1207.7,1207.6,37.5188526]
[1672773080731,7.04988716,1207.7,1207.6,37.5188526]
[1672773081156,10.15009543,1207.7,1207.6,37.5188526]
[1672773081496,7.66992882,1207.7,1207.6,37.5188526]
[1672773083030,4.56972055,1207.7,1207.6,37.5188526]
[1672773083240,4.50572055,1207.7,1207.6,37.5188526]
[1672773083871,7.59940505,1207.7,1207.6,37.5188526]
[1672773084077,7.66340505,1207.7,1207.6,37.5188526]
[1672773086756,3.77033349,1207.7,1207.6,41.41155809]
[1672773086986,7.59940505,1207.7,1207.6,47.4559126]
[1672773087119,7.66340505,1207.7,1207.6,47.4559126]
[1672773087539,10.13812015,1207.7,1207.6,47.4559126]
[1672773087795,10.13819517,1207.7,1207.6,37.5188526]
[1672773088014,7.66340505,1207.7,1207.6,37.5188526]
[1672773089621,8.2899354,1207.7,1207.6,37.5188526]
[1672773090034,4.56972055,1207.7,1207.6,37.5188526]
[1672773090378,4.51117024,1207.7,1207.6,37.5188526]
[1672773090591,7.60566713,1207.7,1207.6,37.5188526]
[1672773090799,7.66966713,1207.7,1207.6,37.5188526]
[1672773090959,7.66966713,1207.7,1207.6,41.41192416]
[1672773097097,4.57517024,1207.7,1207.6,41.41192416]
[1672773097269,7.60587287,1207.7,1207.6,41.41192416]
[1672773097470,7.66987287,1207.7,1207.6,41.41192416]
[1672773097683,7.66987287,1207.7,1207.6,41.40841565]
[1672773098212,7.66987287,1207.7,1207.6,37.51534409]
[1672773098421,7.66987287,1207.7,1207.6,41.40841565]
[1672773098843,7.66987287,1207.7,1207.6,37.51534409]
[1672773099303,4.57517024,1207.7,1207.6,37.51534409]
[1672773099492,7.60575266,1207.7,1207.6,37.51534409]
[1672773099700,7.66975266,1207.7,1207.6,37.51534409]
[1672773099953,4.57517024,1207.7,1207.6,37.51534409]
[1672773100115,4.57517024,1207.7,1207.6,27.57828409]
[1672773100116,7.60569993,1207.7,1207.6,27.57828409]
[1672773100329,7.66969993,1207.7,1207.6,27.57828409]
[1672773101148,7.66969993,1207.7,1207.6,31.47135565]
[1672773101398,7.66969993,1207.7,1207.6,37.51534409]
[1672773101587,8.29538509,1207.7,1207.6,37.51534409]
[1672773102737,8.29538509,1207.7,1207.6,27.57828409]
[1672773102953,8.29538509,1207.7,1207.6,17.64122409]
[1672773103895,8.29538509,1207.7,1207.6,27.57828409]
[1672773104146,8.29538509,1207.7,1207.6,41.40841565]
[1672773104300,8.29538509,1207.7,1207.6,37.51534409]
[1672773104514,8.29538509,1207.7,1207.6,41.40841565]
[1672773105461,7.67029732,1207.7,1207.6,41.40841565]
[1672773106880,7.67029732,1207.7,1207.6,51.34547565]
[1672773106881,6.25347341,1207.7,1207.6,51.34547565]
[1672773107095,6.25336376,1207.7,1207.6,57.47374522]
[1672773107616,6.25381269,1207.7,1207.6,57.47374522]
[1672773107822,6.25381269,1207.7,1207.6,43.64361366]
[1672773108354,6.25359107,1207.7,1207.6,43.64361366]
[1672773108504,4.5744426,1207.7,1207.6,47.53668522]
[1672773108711,8.23065745,1207.7,1207.6,41.40841565]
[1672773108974,8.29465745,1207.7,1207.6,41.40841565]
[1672773109825,8.29465745,1207.7,1207.6,17.64122409]
[1672773113604,8.29465745,1207.7,1207.6,18.04884394]
[1672773114628,8.29465745,1207.7,1207.6,21.9419155]
[1672773114841,8.29465745,1207.7,1207.6,38.85436305]
[1672773115596,8.29465745,1207.7,1207.6,38.4467432]
[1672773116629,8.29465745,1207.7,1207.6,34.55367164]
[1672773116841,8.29465745,1207.7,1207.6,31.47135565]
[1672773117046,8.29465745,1207.7,1207.6,27.57828409]
[1672773117655,8.29465745,1207.7,1207.6,31.47135565]
[1672773118925,4.40231353,1207.7,1207.6,31.47135565]
[1672773119150,4.33831353,1207.7,1207.6,31.47135565]
[1672773119578,8.23066291,1207.7,1207.6,27.57828409]
[1672773119784,8.29466291,1207.7,1207.6,27.57828409]
[1672773119959,8.29466291,1207.7,1207.6,31.47135565]
[1672773120417,8.29466291,1207.7,1207.6,31.46796973]
[1672773123858,8.29466291,1207.7,1207.6,21.53090973]
[1672773125036,8.29466291,1207.7,1207.6,27.57489817]
[1672773125836,8.29357783,1207.7,1207.6,31.46796973]
[1672773126053,8.29357783,1207.7,1207.6,27.57489817]
[1672773126280,8.29357783,1207.7,1207.6,31.46796973]
[1672773127337,8.29357783,1207.7,1207.6,27.57489817]
[1672773128047,8.29357783,1207.7,1207.6,31.46796973]
[1672773129103,8.29357783,1207.7,1207.6,17.63783817]
[1672773129348,4.57336298,1207.7,1207.6,7.70077817]
[1672773129515,0.61809868,1207.7,1207.6,7.70077817]
[1672773129725,4.33195179,1207.7,1207.6,7.70077817]
[1672773129939,4.33195179,1207.7,1207.6,8.1105566]
[1672773129940,8.84926738,1207.7,1207.6,8.1105566]
[1672773130205,18.84950738,1207.7,1207.6,8.1105566]
[1672773130575,18.84950738,1207.7,1207.6,7.70077817]
[1672773130786,8.28663814,1207.7,1207.6,7.70077817]
[1672773131012,8.28663814,1207.7,1207.6,17.63783817]
[1672773131204,4.3957201,1207.7,1207.6,3.56117172]
[1672773131410,2.0421224,1207.7,1207.6,3.0]
[1672773131620,16.31861306,1207.7,1207.6,3.0]
[1672773131885,16.38261306,1207.7,1207.6,3.0]
[1672773132042,12.0423624,1207.7,1207.6,3.0]
[1672773132408,6.44637306,1207.7,1207.6,3.0]
[1672773132838,16.38261306,1207.7,1207.6,3.0]
[1672773133025,36.25509306,1207.7,1207.6,3.0]
[1672773133216,26.31885306,1207.7,1207.6,3.0]
[1672773133429,6.44637306,1207.7,1207.6,3.0]
[1672773134107,6.44637306,1207.7,1207.6,3.42355294]
[1672773134477,6.44637306,1207.7,1207.6,3.0]
[1672773135364,0.68209868,1207.7,1207.6,22.87412]
[1672773135532,0.61809868,1207.7,1207.6,13.00306]
[1672773136170,4.33068258,1207.7,1207.6,3.066]
[1672773136520,0.61809868,1207.7,1207.5,19.9408]
[1672773136829,3.71238256,1207.6,1207.5,27.9831527]
[1672773137145,3.72215157,1207.6,1207.5,24.09008114]
[1672773137460,23.59627157,1207.6,1207.5,0.066]
[1672773137784,31.67045298,1207.6,1207.4,13.55304328]
[1672773138090,6.98604625,1207.5,1207.4,27.64055442]
[1672773138299,7.05004625,1207.5,1207.4,16.80883286]
[1672773138618,7.05004625,1207.5,1207.4,17.64874286]
[1672773138935,7.05004625,1207.5,1207.4,20.07417579]
[1672773139110,7.05004625,1207.5,1207.4,10.6244682]
[1672773140032,7.05004625,1207.5,1207.4,30.83614258]
[1672773141090,7.05981309,1207.5,1207.4,30.83614258]
[1672773142618,5.64061413,1207.5,1207.4,40.77485258]
[1672773142826,9.53368569,1207.5,1207.4,40.77485258]
[1672773143034,5.64061413,1207.5,1207.4,40.77485258]
[1672773144084,5.64061413,1207.5,1207.4,40.77189452]
[1672773144344,9.53368569,1207.5,1207.4,40.77189452]
[1672773144873,5.64061413,1207.5,1207.4,40.77189452]
[1672773145087,9.53368569,1207.5,1207.4,40.77189452]
[1672773145303,5.64061413,1207.5,1207.4,40.77189452]
[1672773145479,9.53368569,1207.5,1207.4,40.77189452]
[1672773146257,9.53402426,1207.5,1207.4,40.77189452]
[1672773148250,5.6409527,1207.5,1207.4,40.77189452]
[1672773148463,9.43159811,1207.5,1207.4,40.77189452]
[1672773148992,5.6409527,1207.5,1207.4,40.77189452]
[1672773149147,9.43753489,1207.5,1207.4,40.77189452]
[1672773149801,9.4371831,1207.5,1207.4,40.77189452]
[1672773150466,5.64688948,1207.5,1207.4,40.77189452]
[1672773151355,9.35024886,1207.5,1207.4,40.77189452]
[1672773151795,6.87603769,1207.5,1207.4,7.7070748]
[1672773152156,8.48551182,1207.5,1207.4,7.7070748]
[1672773152475,7.49544556,1207.5,1207.4,7.7070748]
[1672773152634,3.783063,1207.5,1207.4,7.7070748]
[1672773152845,3.719063,1207.5,1207.4,21.53885636]
[1672773153986,7.43144556,1207.5,1207.4,21.53885636]
[1672773154201,7.49544556,1207.5,1207.4,21.53885636]
[1672773154411,7.49544556,1207.5,1207.4,17.6457848]
[1672773154845,7.49544556,1207.5,1207.4,7.7070748]
[1672773155079,7.49544556,1207.5,1207.4,17.6457848]
[1672773156212,7.49226561,1207.5,1207.4,17.6457848]
[1672773157711,3.77988305,1207.5,1207.4,17.6457848]
[1672773157901,7.42826561,1207.5,1207.4,17.6457848]
[1672773158112,7.49226561,1207.5,1207.4,17.6457848]
[1672773158741,7.49226561,1207.5,1207.4,7.7070748]
[1672773160297,9.84780781,1207.5,1207.4,0.55821366]
[1672773160509,49.48617705,1207.5,1207.1,30.19952184]
[1672773160759,7.47122576,1207.3,1207.1,0.012]
[1672773160945,29.82378,1207.1,1206.8,1.8623336]
[1672773161160,3.0,1206.9,1206.2,0.05803312]
[1672773161343,3.0,1206.9,1206.6,0.004]
[1672773161344,19.88894,1206.7,1206.6,0.004]
[1672773161560,1.85432547,1206.3,1206.1,4.25153272]
[1672773161810,1.85432547,1206.3,1206.2,18.0]
[1672773161981,3.91449173,1206.4,1206.2,11.06569422]
[1672773162188,3.91449173,1206.4,1206.2,0.066]
[1672773162189,3.31222356,1206.3,1206.2,0.066]
[1672773162474,5.14860095,1206.3,1206.1,0.1858385]
[1672773162616,2.21268183,1206.0,1205.8,0.25]
[1672773162828,2.21268183,1206.0,1205.8,2.57417172]
[1672773162829,0.13668183,1206.0,1205.8,2.57417172]
[1672773163080,0.13668183,1206.0,1205.9,3.98416124]
[1672773163306,0.13668183,1206.0,1205.9,29.85321]
[1672773163623,1.22675648,1206.5,1206.0,5.5]
[1672773163770,0.066,1206.6,1206.1,6.98415644]
[1672773163980,4.29364768,1207.0,1206.2,77.06399644]
[1672773163981,1.35275648,1207.0,1206.2,77.06399644]
[1672773164190,14.99987097,1207.2,1206.9,2.065]
[1672773164191,0.82045155,1207.2,1206.9,2.065]
[1672773164461,0.47236462,1207.3,1207.1,18.0]
[1672773164624,0.47236462,1207.3,1207.2,26.9917]
[1672773164625,0.53034681,1207.3,1207.2,26.9917]
[1672773164837,0.20009266,1207.3,1207.2,15.74304146]
[1672773165079,4.1678895,1207.3,1207.2,3.066]
[1672773165260,4.1678895,1207.3,1207.2,18.46296856]
[1672773165261,0.21451303,1207.3,1207.2,18.46296856]
[1672773165480,2.53216061,1207.3,1207.2,14.066]
[1672773165663,2.53216061,1207.3,1207.2,18.03379684]
[1672773165873,2.51162488,1207.3,1207.2,18.52896856]
[1672773166358,0.07240256,1207.3,1207.2,18.52896856]
[1672773166661,0.07240256,1207.3,1207.2,20.58696542]
[1672773166821,0.07240256,1207.3,1207.2,40.46766542]
[1672773167187,0.07240256,1207.3,1207.2,42.52966542]
[1672773167375,0.07240256,1207.3,1207.2,42.75966542]
[1672773167552,0.07240256,1207.3,1207.2,32.81931542]
[1672773168009,0.07240256,1207.3,1207.2,22.87896542]
[1672773168201,0.07240256,1207.3,1207.2,22.64896542]
[1672773168630,0.07240256,1207.3,1207.2,32.58931542]
[1672773168840,0.07240256,1207.3,1207.2,42.52966542]
[1672773169079,0.07240256,1207.3,1207.2,38.56186858]
[1672773169282,0.07240256,1207.3,1207.2,28.62151858]
[1672773170759,0.07240256,1207.3,1207.2,26.55951858]
[1672773170977,4.0401994,1207.3,1207.2,26.55951858]
[1672773171352,0.07240256,1207.3,1207.2,26.55951858]
[1672773171788,4.0401994,1207.3,1207.2,26.55951858]
[1672773172009,0.07240256,1207.3,1207.2,30.70837972]
[1672773172546,4.0401994,1207.3,1207.2,20.76802972]
[1672773173114,4.0401994,1207.3,1207.2,30.70837972]
[1672773174961,4.0401994,1207.3,1207.2,40.64872972]
[1672773175553,0.07240256,1207.3,1207.2,50.58907972]
[1672773175764,0.07240256,1207.3,1207.2,50.81907972]
[1672773176383,4.36880721,1207.4,1207.2,53.36604239]
[1672773176617,6.14426904,1207.4,1207.3,6.70147986]
[1672773176820,6.21026904,1207.4,1207.3,19.46770153]
[1672773177168,6.22380615,1207.4,1207.3,16.68173219]
[1672773177392,4.38234432,1207.4,1207.3,16.68173219]
[1672773177695,0.34854748,1207.4,1207.3,16.68173219]
[1672773177853,0.01353711,1207.4,1207.3,54.59670838]
[1672773178066,0.01353711,1207.4,1207.3,57.10340592]
[1672773178748,0.01353711,1207.4,1207.3,54.3162036]
[1672773179335,0.01353711,1207.4,1207.3,55.9612036]
[1672773180225,0.17420401,1207.4,1207.3,55.9612036]
[1672773181897,0.07420401,1207.4,1207.3,50.59290294]
[1672773182259,0.08667173,1207.4,1207.3,51.01567396]
[1672773183893,0.08667173,1207.4,1207.3,50.59290294]
[1672773184048,0.08667173,1207.4,1207.3,50.58790294]
[1672773187046,11.39636238,1207.7,1207.4,5.58667]
[1672773187047,0.67694252,1207.7,1207.4,5.58667]
[1672773187201,0.61094252,1207.7,1207.6,12.636]
[1672773187408,0.61094252,1207.7,1207.6,50.65309994]
[1672773187742,0.61094252,1207.7,1207.6,60.65309994]
[1672773187969,0.61094252,1207.7,1207.6,61.14827166]
[1672773188516,0.61094252,1207.7,1207.6,68.25688683]
[1672773190282,0.62259916,1207.7,1207.6,68.25688683]
[1672773191992,0.62259916,1207.7,1207.6,70.13088683]
[1672773192354,0.62259916,1207.7,1207.6,71.26538205]
[1672773192903,0.62259916,1207.7,1207.6,67.27432325]
[1672773193114,0.62259916,1207.7,1207.6,71.26043246]
[1672773194349,0.62259916,1207.7,1207.6,59.03121286]
[1672773194566,0.62259916,1207.7,1207.6,48.75121286]
[1672773194777,0.62259916,1207.7,1207.6,55.75121286]
[1672773194980,0.62259916,1207.7,1207.6,37.75121286]
[1672773195231,0.62259916,1207.7,1207.6,37.52121286]
[1672773196367,0.62259916,1207.7,1207.6,37.9275616]
[1672773196679,0.62259916,1207.7,1207.6,37.52121286]
[1672773198246,0.62259916,1207.7,1207.6,47.45827286]
[1672773199150,0.62259916,1207.7,1207.6,14.35697143]
[1672773199151,6.69192436,1207.7,1207.6,14.35697143]
[1672773199460,6.69192436,1207.7,1207.4,19.87658]
[1672773199461,3.65841832,1207.5,1207.4,19.87658]
[1672773199768,3.65841832,1207.5,1207.4,14.15315114]
[1672773200101,7.6473602,1207.5,1207.4,14.64832286]
[1672773200290,7.72472,1207.5,1207.4,4.71003286]
[1672773200506,9.109362,1207.5,1207.4,4.64403286]
[1672773200663,9.109362,1207.5,1207.4,0.49517172]
[1672773201088,9.109362,1207.5,1207.4,3.49517172]
[1672773201330,9.109362,1207.5,1207.4,13.43388172]
[1672773201544,7.72472,1207.5,1207.4,13.49988172]
[1672773202781,9.56618183,1207.5,1207.4,13.49988172]
[1672773203415,12.02245572,1207.5,1207.4,13.49988172]
[1672773203830,12.02245572,1207.5,1207.4,33.37730172]
[1672773204020,12.02245572,1207.5,1207.4,35.8767435]
[1672773204406,10.79944261,1207.5,1207.4,35.8767435]
[1672773204765,9.56618183,1207.5,1207.4,35.8767435]
[1672773205175,4.96892504,1207.5,1207.4,55.30470522]
[1672773205388,6.74438687,1207.5,1207.4,55.30470522]
[1672773205599,4.96892504,1207.5,1207.4,76.08320044]
[1672773205808,3.66977812,1207.5,1207.4,76.08320044]
[1672773206054,3.66977812,1207.5,1207.4,76.31320044]
[1672773206714,3.66977812,1207.5,1207.4,77.95720044]
[1672773207030,3.66977812,1207.5,1207.4,79.70480044]
[1672773207381,3.67177812,1207.5,1207.4,79.70280044]
[1672773207639,3.66977812,1207.5,1207.4,79.70480044]
[1672773208453,3.66977812,1207.5,1207.4,80.73940276]
[1672773209285,3.6746432,1207.5,1207.4,80.73940276]
[1672773210563,3.6746432,1207.5,1207.4,79.59720044]
[1672773214992,3.6746432,1207.5,1207.4,77.95320044]
[1672773216073,4.90779012,1207.5,1207.4,72.61280986]
[1672773216259,8.898732,1207.5,1207.4,47.29865808]
[1672773216476,10.80624139,1207.5,1207.4,46.16616286]
[1672773216709,9.57104691,1207.5,1207.4,46.16616286]
[1672773216878,10.807088,1207.5,1207.4,46.16616286]
[1672773217316,6.81814612,1207.5,1207.4,46.16616286]
[1672773218992,6.81814612,1207.5,1207.4,56.10487286]
[1672773219873,7.59215307,1207.5,1207.4,60.93986063]
[1672773220450,6.35611198,1207.5,1207.4,60.93986063]
[1672773220659,6.35611198,1207.5,1207.4,62.56786063]
[1672773220907,7.59231775,1207.5,1207.4,61.50251044]
[1672773221452,7.59231775,1207.5,1207.4,61.73251044]
[1672773222356,7.59238774,1207.5,1207.4,62.86700566]
[1672773222726,7.59242807,1207.5,1207.4,62.86700566]
[1672773222939,8.81238587,1207.5,1207.4,62.86700566]
[1672773223516,8.81238587,1207.5,1207.4,65.22004935]
[1672773223760,8.82565078,1207.5,1207.4,65.22004935]
[1672773223946,8.82563163,1207.5,1207.4,65.22004935]
[1672773224160,8.82559089,1207.5,1207.4,65.22004935]
[1672773224564,7.60585182,1207.5,1207.4,65.22004935]
[1672773226197,5.75118497,1207.5,1207.4,65.22004935]
[1672773227042,2.09276665,1207.5,1207.4,65.22004935]
[1672773227185,2.02676665,1207.5,1207.4,65.22004935]
[1672773228712,2.02676665,1207.5,1207.4,66.36225167]
[1672773229926,0.79023183,1207.5,1207.4,66.36225167]
[1672773230139,2.02676665,1207.5,1207.4,66.36225167]
[1672773230344,0.79023183,1207.5,1207.4,66.36225167]
[1672773236276,1.83e-06,1207.5,1207.4,66.36225167]
[1672773236491,1.63562912,1207.6,1207.4,66.36225167]
[1672773236641,1.63562912,1207.6,1207.5,20.90881378]
[1672773236849,1.92342305,1207.7,1207.5,78.832329]
[1672773237101,1.92342305,1207.7,1207.6,26.904129]
[1672773237102,0.0027562,1207.7,1207.6,26.904129]
[1672773237335,0.0027562,1207.7,1207.6,66.948369]
[1672773237476,1.85742305,1207.7,1207.6,69.72023826]
[1672773237686,0.0027562,1207.7,1207.6,78.02416186]
[1672773238152,0.01766889,1207.7,1207.6,78.02416186]
[1672773238378,8.89e-06,1207.7,1207.6,72.52416186]
[1672773238595,1.85767745,1207.8,1207.6,72.52416186]
[1672773238752,0.0030106,1207.8,1207.7,20.992129]
[1672773238968,0.0030106,1207.8,1207.7,67.96109062]
[1672773239177,0.01728259,1207.8,1207.7,69.5398548]
[1672773241836,0.01728259,1207.8,1207.7,72.31005712]
[1672773242882,0.01928259,1207.8,1207.7,72.30805712]
[1672773243073,0.01728259,1207.8,1207.7,81.01705712]
[1672773243429,0.0030106,1207.9,1207.7,81.01705712]
[1672773243638,3.81829234,1208.0,1207.8,61.128769]
[1672773243848,3.81829234,1208.0,1207.9,60.71460638]
[1672773244059,3.81829234,1208.0,1207.9,64.2757781]
[1672773244215,3.83009285,1208.0,1207.9,64.2757781]
[1672773244674,3.8300918,1208.0,1207.9,64.2757781]
[1672773245007,3.8300918,1208.0,1207.9,66.09589341]
[1672773245227,0.0131788,1208.0,1207.9,64.76123344]
[1672773245369,5.85549274,1208.0,1207.9,37.51380286]
[1672773245748,7.1569042,1208.0,1207.9,27.57921286]
[1672773245910,7.1569042,1208.0,1207.9,37.51380286]
[1672773247486,4.06837554,1208.0,1207.9,37.51380286]
[1672773247702,4.00237554,1208.0,1207.9,37.51380286]
[1672773248306,4.00237554,1208.0,1207.9,41.5029996]
[1672773248580,7.0909042,1208.0,1207.9,41.5029996]
[1672773248729,4.99142423,1208.0,1207.9,41.5029996]
[1672773248941,3.10170746,1208.0,1207.9,41.5029996]
[1672773249151,0.0131788,1208.0,1207.9,41.5029996]
[1672773249407,1.8656623,1208.0,1207.9,51.4375896]
[1672773249599,0.0131788,1208.0,1207.9,51.4375896]
[1672773249814,1.83722294,1208.0,1207.9,41.5029996]
[1672773250053,4.9257516,1208.0,1207.9,41.5029996]
[1672773250741,11.40822784,1208.0,1207.9,7.71003286]
[1672773250948,8.38569918,1208.0,1207.9,7.71003286]
[1672773251177,12.09193358,1208.0,1207.9,17.64462286]
[1672773251393,8.38569918,1208.0,1207.9,17.64462286]
[1672773251597,12.09193358,1208.0,1207.9,17.64462286]
[1672773251789,8.38569918,1208.0,1207.9,18.06887518]
[1672773252155,12.09193358,1208.0,1207.9,18.06887518]
[1672773252672,12.09193358,1208.0,1207.9,27.57921286]
[1672773253930,12.09193358,1208.0,1207.9,17.64462286]
[1672773254126,12.09193358,1208.0,1207.9,3.56117172]
[1672773254301,12.09193358,1208.0,1207.9,3.49517172]
[1672773254666,12.09193358,1208.0,1207.9,23.36435172]
[1672773254822,12.09193358,1208.0,1207.9,33.36494172]
[1672773255283,12.09193358,1208.0,1207.9,28.97881345]
[1672773255575,12.08952966,1208.0,1207.9,28.97881345]
[1672773255963,12.08952966,1208.0,1207.9,9.10963345]
[1672773257207,12.08952966,1208.0,1207.9,12.10963345]
[1672773257813,8.38569918,1208.0,1207.9,12.10963345]
[1672773258027,12.0895569,1208.0,1207.9,12.51690828]
[1672773259117,12.0895569,1208.0,1207.9,12.10963345]
[1672773259346,8.38569918,1208.0,1207.9,3.066]
[1672773259540,54.08871931,1208.0,1207.8,0.22306776]
[1672773259689,7.68623916,1207.9,1207.8,0.17106776]
[1672773260056,44.67260539,1207.9,1207.8,0.17106776]
[1672773260268,44.58804717,1207.9,1207.8,0.17106776]
[1672773260439,44.58804717,1207.9,1207.7,7.066]
[1672773260644,22.50425366,1207.8,1207.7,11.21486114]
[1672773260860,16.28700628,1207.8,1207.7,11.21486114]
[1672773261298,13.19992288,1207.8,1207.7,7.21486114]
[1672773261531,16.90440178,1207.8,1207.7,7.21486114]
[1672773263280,4.06093309,1207.8,1207.7,37.02358114]
[1672773263636,3.99493309,1207.8,1207.7,37.02358114]
[1672773264162,7.69941199,1207.8,1207.7,37.02358114]
[1672773264485,4.06093309,1207.8,1207.7,37.02358114]
[1672773264633,3.99493309,1207.8,1207.7,37.02358114]
[1672773265161,7.69941199,1207.8,1207.7,37.02358114]
[1672773265371,7.76541199,1207.8,1207.7,37.02358114]
[1672773266466,7.76541199,1207.8,1207.7,64.00072815]
[1672773266467,5.63727567,1207.8,1207.7,64.00072815]
[1672773266674,5.63727567,1207.8,1207.7,65.64472815]
[1672773267080,4.40233965,1207.8,1207.7,65.64472815]
[1672773267295,4.33633965,1207.8,1207.7,67.28210219]
[1672773268067,1.86603484,1207.8,1207.7,67.28210219]
[1672773268451,4.33633965,1207.8,1207.7,67.28210219]
[1672773271220,4.33672721,1207.8,1207.7,67.28210219]
[1672773272135,4.33672721,1207.8,1207.7,66.13989987]
[1672773274347,7.21e-06,1207.8,1207.7,67.28210219]
[1672773274563,1.23568571,1207.8,1207.7,67.28210219]
[1672773275215,1.24623263,1207.8,1207.7,67.28210219]
[1672773279495,0.01054692,1207.8,1207.7,67.28210219]
[1672773280870,0.01054692,1207.8,1207.7,68.91210219]
[1672773284385,6.92e-06,1207.8,1207.7,77.61910219]
[1672773284558,1.73569051,1207.9,1207.7,77.61910219]
[1672773284764,1.73569051,1207.9,1207.8,20.14903758]
[1672773284975,1.73569051,1207.9,1207.8,68.26060118]
[1672773285183,1.74556976,1207.9,1207.8,69.83936536]
[1672773286274,1.74556976,1207.9,1207.8,70.98156768]
[1672773286644,1.74556976,1207.9,1207.8,69.83936536]
[1672773287490,1.74556976,1207.9,1207.8,70.98156768]
[1672773287910,0.50988405,1207.9,1207.8,70.98156768]
[1672773288155,1.74556976,1207.9,1207.8,70.98156768]
[1672773288482,0.50988405,1207.9,1207.8,70.98156768]
[1672773289641,0.00987925,1207.9,1207.8,70.98156768]
[1672773289832,0.50988405,1207.9,1207.8,70.98156768]
[1672773295427,0.50988405,1207.9,1207.8,65.48156768]
[1672773298387,0.50988405,1207.9,1207.8,76.48156768]
[1672773298967,0.00987925,1207.9,1207.8,76.48156768]
[1672773299506,3.65506501,1208.1,1207.8,85.18856768]
[1672773299688,3.65506501,1208.1,1208.0,18.0]
[1672773299689,3.58906501,1208.1,1208.0,18.0]
[1672773299902,3.58906501,1208.1,1208.0,71.94222134]
[1672773300130,3.58906501,1208.1,1208.0,62.52098552]
[1672773300351,3.59847976,1208.1,1208.0,73.52098552]
[1672773300630,3.59847976,1208.1,1208.0,75.16498552]
[1672773300841,3.59847976,1208.1,1208.0,71.17980908]
[1672773304145,1.74690678,1208.1,1208.0,71.17980908]
[1672773304358,3.59847976,1208.1,1208.0,75.16498552]
[1672773304741,3.59847976,1208.1,1208.0,71.17980908]
[1672773306098,2.36409777,1208.1,1208.0,71.17980908]
[1672773306308,4.83286174,1208.1,1208.0,71.17980908]
[1672773307105,4.83286174,1208.1,1208.0,71.59291378]
[1672773307725,8.82065891,1208.1,1208.0,71.17980908]
[1672773307937,8.88665891,1208.1,1208.0,71.17980908]
[1672773308151,4.90148247,1208.1,1208.0,71.17980908]
[1672773308309,4.83548247,1208.1,1208.0,71.17980908]
[1672773309309,4.83566967,1208.1,1208.0,71.17980908]
[1672773310092,4.83566967,1208.1,1208.0,75.1594108]
[1672773310297,4.83566967,1208.1,1208.0,71.17980908]
[1672773310984,6.06724372,1208.1,1208.0,71.17980908]
[1672773311144,3.04728876,1208.1,1208.0,71.17980908]
[1672773311354,4.83593804,1208.1,1208.0,71.17980908]
[1672773311729,2.98128876,1208.1,1208.0,71.17980908]
[1672773312471,6.06724372,1208.1,1208.0,71.17980908]
[1672773312773,6.13324372,1208.1,1208.0,71.17980908]
[1672773314299,6.13324372,1208.1,1208.0,71.59274467]
[1672773314854,6.13324372,1208.1,1208.0,43.74941091]
[1672773315074,6.13324372,1208.1,1208.0,53.68318091]
[1672773315075,3.04728876,1208.1,1208.0,53.68318091]
[1672773315256,4.83730382,1208.1,1208.0,53.27024532]
[1672773316664,4.83753463,1208.1,1208.0,53.27024532]
[1672773317342,4.83753463,1208.1,1208.0,79.54036209]
[1672773317594,3.60628934,1208.1,1208.0,79.54036209]
[1672773317761,2.36877066,1208.1,1208.0,78.45676963]
[1672773318784,4.83753463,1208.1,1208.0,78.45676963]
[1672773320208,4.83753463,1208.1,1208.0,68.51758033]
[1672773320624,4.83770761,1208.1,1208.0,64.37796758]
[1672773320836,4.83769947,1208.1,1208.0,64.37796758]
[1672773321257,4.83769947,1208.1,1208.0,68.51758564]
[1672773322141,2.3689355,1208.1,1208.0,68.51758564]
[1672773322711,4.83769947,1208.1,1208.0,68.51758564]
[1672773322975,4.83769947,1208.1,1208.0,72.97070988]
[1672773322976,2.36924489,1208.1,1208.0,72.97070988]